fUSD/lending_fUSD_20260622
["ID","MTS","AMOUNT","RATE_DAILY","PERIOD"]
[425976623,1782061916000,-1334.72,0.00029505,2]
[425976624,1782061916000,-150.0,0.00029534,2]
[425976628,1782061916000,-700.0,0.0002957,2]
[425976631,1782061916000,-400.0,0.0002957,2]
[425976625,1782061916000,-250.0,0.00029557,13]
[425976634,1782061916000,-501.82455083,0.00029589,2]
[425976629,1782061916000,-700.0,0.0002957,2]
[425976635,1782061916000,-43950.135166,0.00029589,2]
[425976632,1782061916000,-400.0,0.0002957,2]
[425976630,1782061916000,-400.0,0.0002957,2]
[425976633,1782061916000,-159.4358892,0.00029581,2]
[425976636,1782061916000,-156.942244,0.00029589,2]
[425976640,1782061916000,-500.0,0.00029589,2]
[425976641,1782061916000,-527.70335642,0.00029589,2]
[425976642,1782061916000,-500.0,0.00029589,2]
[425976638,1782061916000,-500.0,0.00029589,2]
[425976637,1782061916000,-500.0,0.00029589,2]
[425976627,1782061916000,-700.0,0.0002957,2]
[425976617,1782061916000,-1000.0,0.000295,30]
[425976639,1782061916000,-500.0,0.00029589,2]
[425976615,1782061916000,-375.5,0.000295,2]
[425976613,1782061916000,-5463.0660985,0.000295,2]
[425976586,1782061916000,-3204.0,0.00029318,10]
[425976591,1782061916000,-1439.74,0.00029319,2]
[425976593,1782061916000,-509.0,0.0002934,4]
[425976588,1782061916000,-811.1,0.00029319,2]
[425976589,1782061916000,-1298.69,0.00029319,2]
[425976599,1782061916000,-152.33,0.0002938,30]
[425976597,1782061916000,-300.0,0.0002938,30]
[425976594,1782061916000,-164.0,0.00029349,3]
[425976596,1782061916000,-157.56,0.0002938,30]
[425976598,1782061916000,-264.47,0.0002938,30]
[425976600,1782061916000,-316.8,0.00029386,2]
[425976603,1782061916000,-276.52,0.00029404,2]
[425976587,1782061916000,-2370.42,0.00029319,2]
[425976604,1782061916000,-211.2,0.00029412,2]
[425976595,1782061916000,-300.0,0.0002938,30]
[425976607,1782061916000,-1025.33,0.0002948,30]
[425976609,1782061916000,-811.1,0.00029485,30]
[425976612,1782061916000,-1439.74,0.00029485,30]
[425976611,1782061916000,-811.37,0.00029485,30]
[425976614,1782061916000,-10028.95884987,0.000295,2]
[425976606,1782061916000,-501.10680987,0.0002947,2]
[425976610,1782061916000,-1298.69,0.00029485,30]
[425976605,1782061916000,-700.0,0.0002947,2]
[425976601,1782061916000,-314.53570483,0.00029389,60]
[425976602,1782061916000,-1025.33,0.000294,30]
[425976608,1782061916000,-2370.42,0.00029485,30]
[425976663,1782061917000,-500.0,0.00029589,2]
[425976672,1782061917000,-1266.12,0.00029589,2]
[425976673,1782061917000,-645.4,0.00029589,2]
[425976674,1782061917000,-1160.03,0.00029589,2]
[425976676,1782061917000,-1512.27,0.00029589,2]
[425976675,1782061917000,-1217.07,0.00029589,2]
[425976682,1782061917000,-975.39,0.00029589,2]
[425976678,1782061917000,-500.0,0.00029589,2]
[425976677,1782061917000,-500.0,0.00029589,2]
[425976686,1782061917000,-500.0,0.00029589,2]
[425976685,1782061917000,-1416.02,0.00029589,2]
[425976683,1782061917000,-651.64,0.00029589,2]
[425976680,1782061917000,-544.8,0.00029589,2]
[425976679,1782061917000,-842.29,0.00029589,2]
[425976671,1782061917000,-500.0,0.00029589,2]
[425976681,1782061917000,-643.15,0.00029589,2]
[425976687,1782061917000,-500.0,0.00029589,2]
[425976688,1782061917000,-923.93,0.00029589,2]
[425976689,1782061917000,-500.0,0.00029589,2]
[425976691,1782061917000,-500.0,0.00029589,2]
[425976694,1782061917000,-500.0,0.00029589,2]
[425976692,1782061917000,-500.0,0.00029589,2]
[425976684,1782061917000,-500.0,0.00029589,2]
[425976666,1782061917000,-508.36,0.00029589,2]
[425976662,1782061917000,-500.0,0.00029589,2]
[425976664,1782061917000,-500.0,0.00029589,2]
[425976690,1782061917000,-1369.32,0.00029589,2]
[425976643,1782061917000,-500.0,0.00029589,2]
[425976644,1782061917000,-576.16,0.00029589,2]
[425976645,1782061917000,-500.0,0.00029589,2]
[425976647,1782061917000,-500.0,0.00029589,2]
[425976646,1782061917000,-500.0,0.00029589,2]
[425976648,1782061917000,-500.0,0.00029589,2]
[425976650,1782061917000,-221.58393007,0.00029589,2]
[425976660,1782061917000,-260.086236,0.00029589,2]
[425976649,1782061917000,-500.0,0.00029589,2]
[425976661,1782061917000,-536.66,0.00029589,2]
[425976653,1782061917000,-579.02,0.00029589,2]
[425976654,1782061917000,-530.08855344,0.00029589,2]
[425976652,1782061917000,-500.0,0.00029589,2]
[425976659,1782061917000,-500.0,0.00029589,2]
[425976657,1782061917000,-500.0,0.00029589,2]
[425976655,1782061917000,-2687.78,0.00029589,2]
[425976656,1782061917000,-500.0,0.00029589,2]
[425976658,1782061917000,-1000.0,0.00029589,7]
[425976665,1782061917000,-631.9,0.00029589,2]
[425976667,1782061917000,-500.0,0.00029589,2]
[425976670,1782061917000,-1880.63,0.00029589,2]
[425976669,1782061917000,-500.0,0.00029589,2]
[425976668,1782061917000,-500.0,0.00029589,2]
[425976651,1782061917000,-500.0,0.00029589,2]
[425976699,1782061917000,-500.0,0.00029589,2]
[425976698,1782061917000,-1267.5,0.00029589,2]
[425976725,1782061917000,-500.0,0.00029589,2]
[425976726,1782061917000,-500.0,0.00029589,2]
[425976727,1782061917000,-597.07,0.00029589,2]
[425976730,1782061917000,-598.59,0.00029589,2]
[425976731,1782061917000,-170.260492,0.00029589,2]
[425976728,1782061917000,-500.0,0.00029589,2]
[425976729,1782061917000,-500.0,0.00029589,2]
[425976734,1782061917000,-500.0,0.00029589,2]
[425976733,1782061917000,-500.0,0.00029589,2]
[425976732,1782061917000,-500.0,0.00029589,2]
[425976736,1782061917000,-562.86,0.00029589,2]
[425976738,1782061917000,-570.4435564,0.00029589,2]
[425976739,1782061917000,-506.54,0.00029589,2]
[425976742,1782061917000,-3422.69,0.00029589,2]
[425976737,1782061917000,-819.78,0.00029589,2]
[425976741,1782061917000,-500.0,0.00029589,2]
[425976743,1782061917000,-766.03,0.00029589,2]
[425976740,1782061917000,-534.07,0.00029589,2]
[425976744,1782061917000,-493.29857863,0.00029589,2]
[425976746,1782061917000,-500.0,0.00029589,2]
[425976747,1782061917000,-500.0,0.00029589,2]
[425976745,1782061917000,-500.0,0.00029589,2]
[425976693,1782061917000,-553.48,0.00029589,2]
[425976723,1782061917000,-500.0,0.00029589,2]
[425976722,1782061917000,-591.28,0.00029589,2]
[425976735,1782061917000,-972.04,0.00029589,2]
[425976719,1782061917000,-500.0,0.00029589,2]
[425976695,1782061917000,-353.56877456,0.00029589,2]
[425976721,1782061917000,-500.0,0.00029589,2]
[425976697,1782061917000,-500.0,0.00029589,2]
[425976696,1782061917000,-500.0,0.00029589,2]
[425976709,1782061917000,-526.65,0.00029589,2]
[425976701,1782061917000,-597.73,0.00029589,2]
[425976700,1782061917000,-500.0,0.00029589,2]
[425976710,1782061917000,-500.0,0.00029589,2]
[425976711,1782061917000,-540.54,0.00029589,2]
[425976702,1782061917000,-500.0,0.00029589,2]
[425976704,1782061917000,-555.93,0.00029589,2]
[425976705,1782061917000,-500.0,0.00029589,2]
[425976703,1782061917000,-500.0,0.00029589,2]
[425976716,1782061917000,-594.78753075,0.00029589,2]
[425976706,1782061917000,-500.0,0.00029589,2]
[425976708,1782061917000,-527.94,0.00029589,2]
[425976713,1782061917000,-610.79,0.00029589,2]
[425976712,1782061917000,-500.0,0.00029589,2]
[425976715,1782061917000,-902.56,0.00029589,2]
[425976714,1782061917000,-500.0,0.00029589,2]
[425976718,1782061917000,-500.0,0.00029589,2]
[425976720,1782061917000,-529.62,0.00029589,2]
[425976717,1782061917000,-500.0,0.00029589,2]
[425976707,1782061917000,-500.0,0.00029589,2]
[425976724,1782061917000,-560.08,0.00029589,2]
[425976787,1782061918000,-588.39,0.00029589,2]
[425976788,1782061918000,-500.0,0.00029589,2]
[425976786,1782061918000,-500.0,0.00029589,2]
[425976784,1782061918000,-500.0,0.00029589,2]
[425976785,1782061918000,-248.60459234,0.00029589,2]
[425976779,1782061918000,-500.0,0.00029589,2]
[425976780,1782061918000,-1244.82,0.00029589,2]
[425976777,1782061918000,-500.0,0.00029589,2]
[425976781,1782061918000,-698.8,0.00029589,2]
[425976783,1782061918000,-620.22,0.00029589,2]
[425976782,1782061918000,-952.51,0.00029589,2]
[425976789,1782061918000,-792.91,0.00029589,2]
[425976801,1782061918000,-500.0,0.00029589,2]
[425976793,1782061918000,-2678.53,0.00029589,2]
[425976795,1782061918000,-678.71,0.00029589,2]
[425976799,1782061918000,-288.05464375,0.00029589,2]
[425976794,1782061918000,-226.78468914,0.00029589,2]
[425976796,1782061918000,-508.83,0.00029589,2]
[425976792,1782061918000,-640.68,0.00029589,2]
[425976791,1782061918000,-500.0,0.00029589,2]
[425976797,1782061918000,-500.0,0.00029589,2]
[425976798,1782061918000,-500.0,0.00029589,2]
[425976809,1782061918000,-500.0,0.00029589,2]
[425976810,1782061918000,-500.0,0.00029589,2]
[425976778,1782061918000,-500.0,0.00029589,2]
[425976790,1782061918000,-500.0,0.00029589,2]
[425976775,1782061918000,-500.0,0.00029589,2]
[425976753,1782061918000,-500.0,0.00029589,2]
[425976774,1782061918000,-1423.29,0.00029589,2]
[425976802,1782061918000,-893.03,0.00029589,2]
[425976754,1782061918000,-500.0,0.00029589,2]
[425976748,1782061918000,-500.0,0.00029589,2]
[425976750,1782061918000,-500.0,0.00029589,2]
[425976752,1782061918000,-618.75662434,0.00029589,2]
[425976749,1782061918000,-549.42,0.00029589,2]
[425976751,1782061918000,-500.0,0.00029589,2]
[425976756,1782061918000,-500.0,0.00029589,2]
[425976755,1782061918000,-500.0,0.00029589,2]
[425976757,1782061918000,-500.0,0.00029589,2]
[425976760,1782061918000,-500.0,0.00029589,2]
[425976765,1782061918000,-500.0,0.00029589,2]
[425976758,1782061918000,-847.94,0.00029589,2]
[425976759,1782061918000,-500.0,0.00029589,2]
[425976761,1782061918000,-500.0,0.00029589,2]
[425976762,1782061918000,-741.63,0.00029589,2]
[425976764,1782061918000,-535.03,0.00029589,2]
[425976763,1782061918000,-831.45,0.00029589,2]
[425976766,1782061918000,-500.0,0.00029589,2]
[425976768,1782061918000,-500.0,0.00029589,2]
[425976769,1782061918000,-500.0,0.00029589,2]
[425976767,1782061918000,-534.55,0.00029589,2]
[425976771,1782061918000,-670.78,0.00029589,2]
[425976770,1782061918000,-663.71,0.00029589,2]
[425976773,1782061918000,-500.0,0.00029589,2]
[425976776,1782061918000,-383.51892082,0.00029589,2]
[425976803,1782061918000,-519.3,0.00029589,2]
[425976772,1782061918000,-567.5,0.00029589,2]
[425976806,1782061918000,-500.0,0.00029589,2]
[425976835,1782061918000,-500.0,0.00029589,2]
[425976836,1782061918000,-246.14893503,0.00029589,2]
[425976839,1782061918000,-5864.59,0.00029589,2]
[425976837,1782061918000,-602.92,0.00029589,2]
[425976844,1782061918000,-500.0,0.00029589,2]
[425976859,1782061918000,-500.0,0.00029589,2]
[425976843,1782061918000,-500.0,0.00029589,2]
[425976840,1782061918000,-5224.19,0.00029589,2]
[425976842,1782061918000,-500.0,0.00029589,2]
[425976841,1782061918000,-500.0,0.00029589,2]
[425976847,1782061918000,-500.0,0.00029589,2]
[425976857,1782061918000,-500.0,0.00029589,2]
[425976846,1782061918000,-1118.18,0.00029589,2]
[425976848,1782061918000,-1056.03,0.00029589,2]
[425976852,1782061918000,-1016.84,0.00029589,2]
[425976855,1782061918000,-500.0,0.00029589,2]
[425976851,1782061918000,-1000.0,0.00029589,2]
[425976853,1782061918000,-500.0,0.00029589,2]
[425976849,1782061918000,-500.0,0.00029589,2]
[425976854,1782061918000,-500.0,0.00029589,2]
[425976856,1782061918000,-520.24147932,0.00029589,2]
[425976858,1782061918000,-500.0,0.00029589,2]
[425976860,1782061918000,-500.0,0.00029589,2]
[425976861,1782061918000,-500.0,0.00029589,2]
[425976800,1782061918000,-1511.74,0.00029589,2]
[425976845,1782061918000,-500.0,0.00029589,2]
[425976838,1782061918000,-500.0,0.00029589,2]
[425976850,1782061918000,-500.0,0.00029589,2]
[425976828,1782061918000,-500.0,0.00029589,2]
[425976834,1782061918000,-500.0,0.00029589,2]
[425976805,1782061918000,-1318.07,0.00029589,2]
[425976804,1782061918000,-616.78032856,0.00029589,2]
[425976807,1782061918000,-690.91,0.00029589,2]
[425976808,1782061918000,-500.0,0.00029589,2]
[425976811,1782061918000,-500.0,0.00029589,2]
[425976815,1782061918000,-246.61626926,0.00029589,2]
[425976814,1782061918000,-500.0,0.00029589,2]
[425976817,1782061918000,-500.0,0.00029589,2]
[425976819,1782061918000,-803.29,0.00029589,2]
[425976821,1782061918000,-1092.63,0.00029589,2]
[425976812,1782061918000,-500.0,0.00029589,2]
[425976820,1782061918000,-500.0,0.00029589,2]
[425976813,1782061918000,-800.23,0.00029589,2]
[425976822,1782061918000,-500.0,0.00029589,2]
[425976833,1782061918000,-500.0,0.00029589,2]
[425976816,1782061918000,-594.9,0.00029589,2]
[425976832,1782061918000,-654.24,0.00029589,2]
[425976831,1782061918000,-3987.32,0.00029589,2]
[425976830,1782061918000,-500.0,0.00029589,2]
[425976827,1782061918000,-500.0,0.00029589,2]
[425976829,1782061918000,-500.0,0.00029589,2]
[425976826,1782061918000,-500.0,0.00029589,2]
[425976823,1782061918000,-540.14,0.00029589,2]
[425976825,1782061918000,-500.0,0.00029589,2]
[425976824,1782061918000,-500.0,0.00029589,2]
[425976818,1782061918000,-500.0,0.00029589,2]
[425976888,1782061919000,-12052.2,0.00029589,2]
[425976885,1782061919000,-4756.56,0.00029589,2]
[425976889,1782061919000,-500.0,0.00029589,2]
[425976887,1782061919000,-605.17,0.00029589,2]
[425976881,1782061919000,-500.0,0.00029589,2]
[425976884,1782061919000,-500.0,0.00029589,2]
[425976886,1782061919000,-6410.69,0.00029589,2]
[425976883,1782061919000,-500.0,0.00029589,2]
[425976897,1782061919000,-500.0,0.00029589,2]
[425976903,1782061919000,-4107.48,0.00029589,2]
[425976902,1782061919000,-500.0,0.00029589,2]
[425976891,1782061919000,-2146.6,0.00029589,2]
[425976896,1782061919000,-500.0,0.00029589,2]
[425976894,1782061919000,-822.03,0.00029589,2]
[425976890,1782061919000,-4173.31,0.00029589,2]
[425976898,1782061919000,-547.74,0.00029589,2]
[425976892,1782061919000,-8253.7,0.00029589,2]
[425976882,1782061919000,-500.0,0.00029589,2]
[425976866,1782061919000,-6753.8,0.00029589,2]
[425976873,1782061919000,-500.0,0.00029589,2]
[425976893,1782061919000,-500.0,0.00029589,2]
[425976862,1782061919000,-1130.66,0.00029589,2]
[425976868,1782061919000,-500.0,0.00029589,2]
[425976864,1782061919000,-500.0,0.00029589,2]
[425976863,1782061919000,-572.65,0.00029589,2]
[425976865,1782061919000,-500.0,0.00029589,2]
[425976867,1782061919000,-500.0,0.00029589,2]
[425976869,1782061919000,-3926.18,0.00029589,2]
[425976878,1782061919000,-732.43,0.00029589,2]
[425976877,1782061919000,-741.05,0.00029589,2]
[425976879,1782061919000,-541.15,0.00029589,2]
[425976871,1782061919000,-2712.86,0.00029589,2]
[425976870,1782061919000,-500.0,0.00029589,2]
[425976872,1782061919000,-873.86,0.00029589,2]
[425976875,1782061919000,-4889.99,0.00029589,2]
[425976874,1782061919000,-500.0,0.00029589,2]
[425976876,1782061919000,-5923.33,0.00029589,2]
[425976880,1782061919000,-1048.26,0.00029589,2]
[425976895,1782061919000,-1547.68,0.00029589,2]
[425976913,1782061919000,-1094.84,0.00029589,2]
[425976901,1782061919000,-4867.06,0.00029589,2]
[425976923,1782061919000,-500.0,0.00029589,2]
[425976925,1782061919000,-6582.69,0.00029589,2]
[425976927,1782061919000,-826.36,0.00029589,2]
[425976926,1782061919000,-500.0,0.00029589,2]
[425976928,1782061919000,-4428.27,0.00029589,2]
[425976929,1782061919000,-500.0,0.00029589,2]
[425976931,1782061919000,-6489.37,0.00029589,2]
[425976930,1782061919000,-3434.42,0.00029589,2]
[425976932,1782061919000,-500.0,0.00029589,2]
[425976900,1782061919000,-500.0,0.00029589,2]
[425976933,1782061919000,-500.0,0.00029589,2]
[425976936,1782061919000,-500.0,0.00029589,2]
[425976938,1782061919000,-763.6,0.00029589,2]
[425976937,1782061919000,-8108.8,0.00029589,2]
[425976935,1782061919000,-6468.05,0.00029589,2]
[425976939,1782061919000,-2478.59,0.00029589,2]
[425976940,1782061919000,-500.0,0.00029589,2]
[425976924,1782061919000,-8949.23,0.00029589,2]
[425976922,1782061919000,-544.71,0.00029589,2]
[425976934,1782061919000,-500.0,0.00029589,2]
[425976917,1782061919000,-8104.14,0.00029589,2]
[425976921,1782061919000,-946.16,0.00029589,2]
[425976899,1782061919000,-9055.22,0.00029589,2]
[425976905,1782061919000,-839.88,0.00029589,2]
[425976904,1782061919000,-500.0,0.00029589,2]
[425976909,1782061919000,-9631.81,0.00029589,2]
[425976907,1782061919000,-913.85,0.00029589,2]
[425976908,1782061919000,-500.0,0.00029589,2]
[425976910,1782061919000,-500.0,0.00029589,2]
[425976911,1782061919000,-4501.1,0.00029589,2]
[425976912,1782061919000,-1087.92,0.00029589,2]
[425976914,1782061919000,-253.97210808,0.00029589,2]
[425976915,1782061919000,-500.0,0.00029589,2]
[425976916,1782061919000,-500.0,0.00029589,2]
[425976918,1782061919000,-3218.44,0.00029589,2]
[425976920,1782061919000,-9092.8,0.00029589,2]
[425976906,1782061919000,-500.0,0.00029589,2]
[425976919,1782061919000,-3370.08,0.00029589,2]
[425976959,1782061920000,-3874.09,0.00029589,2]
[425976957,1782061920000,-500.0,0.00029589,2]
[425976955,1782061920000,-500.0,0.00029589,2]
[425976958,1782061920000,-4131.31,0.00029589,2]
[425976962,1782061920000,-629.28,0.00029589,2]
[425976961,1782061920000,-538.42,0.00029589,2]
[425976963,1782061920000,-500.0,0.00029589,2]
[425976964,1782061920000,-500.0,0.00029589,2]
[425976956,1782061920000,-6462.79,0.00029589,2]
[425976960,1782061920000,-6683.71,0.00029589,2]
[425976953,1782061920000,-650.16,0.00029589,2]
[425976941,1782061920000,-500.0,0.00029589,2]
[425976954,1782061920000,-15060.49,0.00029589,2]
[425976952,1782061920000,-631.38,0.00029589,2]
[425976950,1782061920000,-742.97,0.00029589,2]
[425976948,1782061920000,-981.05,0.00029589,2]
[425976946,1782061920000,-10410.98,0.00029589,2]
[425976949,1782061920000,-10460.79,0.00029589,2]
[425976945,1782061920000,-8432.29,0.00029589,2]
[425976943,1782061920000,-500.0,0.00029589,2]
[425976944,1782061920000,-3418.67,0.00029589,2]
[425976942,1782061920000,-514.73,0.00029589,2]
[425976965,1782061920000,-500.0,0.00029589,2]
[425976951,1782061920000,-500.0,0.00029589,2]
[425976966,1782061920000,-500.0,0.00029589,2]
[425976947,1782061920000,-447.05788346,0.00029589,2]
[425976968,1782061920000,-853.42,0.00029589,2]
[425976991,1782061920000,-500.0,0.00029589,2]
[425976990,1782061920000,-1825.32,0.00029589,2]
[425976989,1782061920000,-500.0,0.00029589,2]
[425976988,1782061920000,-500.0,0.00029589,2]
[425976987,1782061920000,-8230.87,0.00029589,2]
[425976985,1782061920000,-375.53689497,0.00029589,2]
[425976984,1782061920000,-616.3,0.00029589,2]
[425976992,1782061920000,-500.0,0.00029589,2]
[425976982,1782061920000,-2000.0,0.00029589,2]
[425976983,1782061920000,-1823.11,0.00029589,2]
[425976979,1782061920000,-500.0,0.00029589,2]
[425976986,1782061920000,-4815.29,0.00029589,2]
[425976977,1782061920000,-501.49,0.00029589,2]
[425976976,1782061920000,-709.73,0.00029589,2]
[425976969,1782061920000,-500.0,0.00029589,2]
[425976980,1782061920000,-500.0,0.00029589,2]
[425976972,1782061920000,-500.0,0.00029589,2]
[425976975,1782061920000,-1483.1,0.00029589,2]
[425976970,1782061920000,-347.62816374,0.00029589,2]
[425976967,1782061920000,-785.35,0.00029589,2]
[425976971,1782061920000,-500.0,0.00029589,2]
[425976981,1782061920000,-349.1057671,0.00029589,2]
[425976974,1782061920000,-2013.27,0.00029589,2]
[425976978,1782061920000,-4451.14,0.00029589,2]
[425976973,1782061920000,-670.57,0.00029589,2]
[425977032,1782061921000,-1439.74,0.00029652,7]
[425977031,1782061921000,-811.37,0.00029652,7]
[425977030,1782061921000,-1298.69,0.00029652,7]
[425977028,1782061921000,-2370.42,0.00029652,7]
[425977034,1782061921000,-200.0,0.0002967,2]
[425977026,1782061921000,-2110.0,0.00029637,2]
[425977023,1782061921000,-3230930.90902769,0.00029601,2]
[425977027,1782061921000,-1025.33,0.0002964,30]
[425977024,1782061921000,-250.0,0.0002962,14]
[425977029,1782061921000,-811.1,0.00029652,7]
[425977025,1782061921000,-2331.0,0.00029621,3]
[425977048,1782061921000,-1025.33,0.000298,30]
[425977036,1782061921000,-1025.33,0.0002972,30]
[425977043,1782061921000,-160.0,0.00029797,3]
[425977044,1782061921000,-468.23712908,0.00029799,7]
[425977037,1782061921000,-150.297311,0.00029731,28]
[425977035,1782061921000,-200.0,0.0002967,2]
[425977039,1782061921000,-5430.33226,0.0002976,30]
[425977038,1782061921000,-1000.0,0.0002975,2]
[425977041,1782061921000,-400.0,0.0002977,2]
[425977040,1782061921000,-700.0,0.0002977,2]
[425977045,1782061921000,-33905.07,0.000298,2]
[425977047,1782061921000,-153055.59755939,0.000298,2]
[425977022,1782061921000,-2425.93010201,0.00029589,12]
[425977033,1782061921000,-14633.35,0.00029656,7]
[425977017,1782061921000,-500.0,0.00029589,2]
[425977007,1782061921000,-500.0,0.00029589,2]
[425977015,1782061921000,-4853.13,0.00029589,2]
[425976994,1782061921000,-529.37,0.00029589,2]
[425976993,1782061921000,-3531.97,0.00029589,2]
[425976996,1782061921000,-500.0,0.00029589,2]
[425976998,1782061921000,-4605.85,0.00029589,2]
[425977000,1782061921000,-546.99,0.00029589,2]
[425976999,1782061921000,-218.66906277,0.00029589,2]
[425976995,1782061921000,-8318.01,0.00029589,2]
[425977001,1782061921000,-2744.45,0.00029589,2]
[425976997,1782061921000,-338.45475444,0.00029589,2]
[425977003,1782061921000,-500.0,0.00029589,2]
[425977005,1782061921000,-500.0,0.00029589,2]
[425977002,1782061921000,-6111.21,0.00029589,2]
[425977016,1782061921000,-500.0,0.00029589,2]
[425977004,1782061921000,-500.0,0.00029589,2]
[425977008,1782061921000,-500.0,0.00029589,2]
[425977049,1782061921000,-2370.42,0.00029819,2]
[425977011,1782061921000,-543.15,0.00029589,2]
[425977009,1782061921000,-500.0,0.00029589,2]
[425977010,1782061921000,-500.0,0.00029589,2]
[425977012,1782061921000,-6629.64,0.00029589,2]
[425977013,1782061921000,-1025.57,0.00029589,2]
[425977020,1782061921000,-1078.52515517,0.00029589,12]
[425977021,1782061921000,-3000.0,0.00029589,12]
[425977014,1782061921000,-781.73,0.00029589,2]
[425977018,1782061921000,-500.0,0.00029589,2]
[425977019,1782061921000,-500.0,0.00029589,2]
[425977006,1782061921000,-3268.54,0.00029589,2]
[425977053,1782061921000,-1439.74,0.00029819,2]
[425977042,1782061921000,-1334.73,0.00029795,2]
[425977052,1782061921000,-811.37,0.00029819,2]
[425977083,1782061921000,-500.0,0.00029863,2]
[425977082,1782061921000,-500.0,0.00029863,2]
[425977094,1782061921000,-500.0,0.00029863,2]
[425977093,1782061921000,-500.0,0.00029863,2]
[425977085,1782061921000,-579.02,0.00029863,2]
[425977084,1782061921000,-500.0,0.00029863,2]
[425977086,1782061921000,-2687.78,0.00029863,2]
[425977087,1782061921000,-500.0,0.00029863,2]
[425977088,1782061921000,-500.0,0.00029863,2]
[425977089,1782061921000,-1000.0,0.00029863,7]
[425977091,1782061921000,-536.66,0.00029863,2]
[425977092,1782061921000,-500.0,0.00029863,2]
[425977095,1782061921000,-631.9,0.00029863,2]
[425977097,1782061921000,-500.0,0.00029863,2]
[425977100,1782061921000,-1880.63,0.00029863,2]
[425977105,1782061921000,-1217.07,0.00029863,2]
[425977104,1782061921000,-1160.03,0.00029863,2]
[425977096,1782061921000,-508.36,0.00029863,2]
[425977099,1782061921000,-500.0,0.00029863,2]
[425977102,1782061921000,-1266.12,0.00029863,2]
[425977101,1782061921000,-500.0,0.00029863,2]
[425977098,1782061921000,-500.0,0.00029863,2]
[425977103,1782061921000,-645.4,0.00029863,2]
[425977106,1782061921000,-1512.27,0.00029863,2]
[425977055,1782061921000,-174.0,0.00029839,30]
[425977079,1782061921000,-500.0,0.00029863,2]
[425977078,1782061921000,-500.0,0.00029863,2]
[425977090,1782061921000,-500.0,0.00029863,2]
[425977081,1782061921000,-500.0,0.00029863,2]
[425977075,1782061921000,-500.0,0.00029863,2]
[425977046,1782061921000,-2379357.59443263,0.000298,2]
[425977054,1782061921000,-161.0,0.00029839,30]
[425977051,1782061921000,-1298.69,0.00029819,2]
[425977057,1782061921000,-350.0,0.00029846,2]
[425977060,1782061921000,-169.0,0.00029848,30]
[425977067,1782061921000,-159.0,0.00029851,30]
[425977063,1782061921000,-157.0,0.00029848,30]
[425977061,1782061921000,-154.0,0.00029848,30]
[425977059,1782061921000,-479.0,0.00029848,30]
[425977056,1782061921000,-155.0,0.00029839,30]
[425977058,1782061921000,-405.0,0.00029848,30]
[425977066,1782061921000,-184.0,0.00029851,30]
[425977050,1782061921000,-811.1,0.00029819,2]
[425977062,1782061921000,-528.0,0.00029848,30]